fUSD/lending_fUSD_20241119
["ID","MTS","AMOUNT","RATE_DAILY","PERIOD"]
[342663827,1732029034987,-500.0,9.888e-05,2]
[342663828,1732029034997,-500.0,9.888e-05,2]
[342663829,1732029035006,-362.13057543,9.888e-05,2]
[342663830,1732029035017,-500.0,9.888e-05,2]
[342663831,1732029035027,-500.0,9.888e-05,2]
[342663832,1732029035036,-482.34019395,9.888e-05,2]
[342663833,1732029035046,-500.0,9.888e-05,2]
[342663834,1732029035055,-500.0,9.888e-05,2]
[342663835,1732029035064,-233.2930363,9.888e-05,2]
[342663836,1732029035075,-500.0,9.888e-05,2]
[342663837,1732029035084,-500.0,9.888e-05,2]
[342663838,1732029035093,-500.0,9.888e-05,2]
[342663839,1732029035103,-288.44841148,9.888e-05,2]
[342663840,1732029035111,-500.0,9.888e-05,2]
[342663841,1732029035121,-500.0,9.888e-05,2]
[342663842,1732029035131,-500.0,9.888e-05,2]
[342663843,1732029035140,-500.0,9.888e-05,2]
[342663844,1732029035149,-500.0,9.888e-05,2]
[342663845,1732029035158,-500.0,9.888e-05,2]
[342663846,1732029035167,-500.0,9.888e-05,2]
[342663847,1732029035177,-500.0,9.888e-05,2]
[342663848,1732029035186,-500.0,9.888e-05,2]
[342663849,1732029035195,-500.0,9.888e-05,2]
[342663850,1732029035204,-500.0,9.888e-05,2]
[342663851,1732029035213,-500.0,9.888e-05,2]
[342663852,1732029035222,-500.0,9.888e-05,2]
[342663853,1732029035233,-500.0,9.888e-05,2]
[342663854,1732029035244,-500.0,9.888e-05,2]
[342663855,1732029035253,-500.0,9.888e-05,2]
[342663856,1732029035264,-500.0,9.888e-05,2]
[342663857,1732029035274,-500.0,9.888e-05,2]
[342663858,1732029035283,-500.0,9.888e-05,2]
[342663859,1732029035291,-500.0,9.888e-05,2]
[342663860,1732029035300,-500.0,9.888e-05,2]
[342663861,1732029035311,-814.96,9.888e-05,2]
[342663862,1732029035321,-500.0,9.888e-05,2]
[342663863,1732029035330,-500.0,9.888e-05,2]
[342663864,1732029035340,-177.52,9.888e-05,2]
[342663865,1732029035351,-500.0,9.888e-05,2]
[342663866,1732029035361,-500.0,9.888e-05,2]
[342663867,1732029035370,-500.0,9.888e-05,2]
[342663868,1732029035379,-500.0,9.888e-05,2]
[342663869,1732029035388,-500.0,9.888e-05,2]
[342663870,1732029035398,-500.0,9.888e-05,2]
[342663871,1732029035407,-500.0,9.888e-05,2]
[342663872,1732029035416,-372.47237301,9.888e-05,2]
[342663873,1732029035425,-500.0,9.888e-05,2]
[342663874,1732029035434,-500.0,9.888e-05,2]
[342663875,1732029035443,-500.0,9.888e-05,2]
[342663876,1732029035452,-500.0,9.888e-05,2]
[342663877,1732029035461,-500.0,9.888e-05,2]
[342663878,1732029035470,-500.0,9.888e-05,2]
[342663879,1732029035479,-500.0,9.888e-05,2]
[342663880,1732029035488,-500.0,9.888e-05,2]
[342663881,1732029035497,-346.08920029,9.888e-05,2]
[342663882,1732029035506,-500.0,9.888e-05,2]
[342663883,1732029035516,-500.0,9.888e-05,2]
[342663884,1732029035525,-500.0,9.888e-05,2]
[342663885,1732029035535,-500.0,9.888e-05,2]
[342663886,1732029035544,-500.0,9.888e-05,2]
[342663887,1732029035553,-500.0,9.888e-05,2]
[342663888,1732029035563,-500.0,9.888e-05,2]
[342663889,1732029035572,-500.0,9.888e-05,2]
[342663890,1732029035581,-500.0,9.888e-05,2]
[342663891,1732029035591,-500.0,9.888e-05,2]
[342663892,1732029035601,-500.0,9.888e-05,2]
[342663893,1732029035611,-500.0,9.888e-05,2]
[342663894,1732029035622,-500.0,9.888e-05,2]
[342663895,1732029035632,-500.0,9.888e-05,2]
[342663896,1732029035641,-500.0,9.888e-05,2]
[342663897,1732029035650,-500.0,9.888e-05,2]
[342663898,1732029035659,-500.0,9.888e-05,2]
[342663899,1732029035669,-500.0,9.888e-05,2]
[342663900,1732029035678,-500.0,9.888e-05,2]
[342663901,1732029035687,-1863.3402,9.889e-05,2]
[342663902,1732029035696,-250.0,9.89e-05,2]
[342663903,1732029035705,-413.538035,9.895e-05,2]
[342663904,1732029035714,-413.538035,9.963e-05,2]
[342663905,1732029035723,-413.538035,9.972e-05,2]
[342663906,1732029035733,-413.538035,9.974e-05,2]
[342663907,1732029035746,-413.538035,9.975e-05,2]
[342663908,1732029035755,-413.538035,9.975e-05,2]
[342663909,1732029035766,-413.538035,9.975e-05,2]
[342663910,1732029035775,-413.538035,9.976e-05,2]
[342663911,1732029035786,-413.538035,9.976e-05,2]
[342663912,1732029035795,-413.538035,9.981e-05,2]
[342663913,1732029035804,-500.0,9.989e-05,7]
[342663914,1732029035816,-500.0,9.989e-05,2]
[342663915,1732029035825,-505.62841089,9.989e-05,2]
[342663916,1732029035834,-505.99875146,9.989e-05,2]
[342663917,1732029035843,-500.0,9.989e-05,2]
[342663918,1732029035852,-619.0786486,9.989e-05,2]
[342663919,1732029035861,-501.27366855,9.989e-05,2]
[342663920,1732029035870,-500.0,9.989e-05,2]
[342663921,1732029035880,-354.62600813,9.989e-05,2]
[342663922,1732029035889,-500.0,9.989e-05,2]
[342663923,1732029035898,-500.0,9.989e-05,2]
[342663924,1732029035907,-500.0,9.989e-05,2]
[342663925,1732029035916,-500.0,9.989e-05,2]
[342663926,1732029035925,-500.0,9.989e-05,2]
[342663927,1732029035935,-280.03398828,9.989e-05,2]
[342663928,1732029035944,-500.0,9.989e-05,2]
[342663929,1732029035954,-500.0,9.989e-05,2]
[342663930,1732029035963,-500.0,9.989e-05,2]
[342663931,1732029035973,-500.0,9.989e-05,2]
[342663932,1732029035984,-500.0,9.989e-05,2]
[342663933,1732029035994,-500.0,9.989e-05,2]
[342663934,1732029036003,-500.0,9.989e-05,2]
[342663935,1732029036013,-500.0,9.989e-05,2]
[342663936,1732029036024,-500.0,9.989e-05,2]
[342663937,1732029036033,-350.76733022,9.989e-05,2]
[342663938,1732029036043,-413.538035,9.996e-05,2]
[342663939,1732029036052,-413.538035,9.996e-05,2]
[342663940,1732029036061,-413.538035,9.997e-05,2]
[342663941,1732029036071,-413.538035,9.998e-05,2]
[342663942,1732029036079,-413.538035,9.998e-05,2]
[342663943,1732029036089,-413.538035,9.999e-05,2]
[342663944,1732029036099,-500.0,9.999e-05,7]
[342663945,1732029036108,-500.0,9.999e-05,7]
[342663946,1732029036118,-500.0,9.999e-05,7]
[342663947,1732029036128,-500.0,9.999e-05,7]
[342663948,1732029036137,-500.0,9.999e-05,7]
[342663949,1732029036147,-500.0,9.999e-05,7]
[342663950,1732029036156,-500.0,9.999e-05,7]
[342663951,1732029036166,-500.0,9.999e-05,7]
[342663952,1732029036175,-500.0,9.999e-05,7]
[342663953,1732029036184,-500.0,9.999e-05,7]
[342663954,1732029036193,-500.0,9.999e-05,7]
[342663955,1732029036202,-500.0,9.999e-05,7]
[342663956,1732029036211,-500.0,9.999e-05,7]
[342663957,1732029036221,-500.0,9.999e-05,7]
[342663958,1732029036230,-500.0,9.999e-05,7]
[342663959,1732029036239,-500.0,9.999e-05,7]
[342663960,1732029036249,-500.0,9.999e-05,7]
[342663961,1732029036258,-259.87533996,9.999e-05,7]
[342663962,1732029036268,-2261.81944286,9.999e-05,2]
[342663963,1732029036277,-500.0,9.999e-05,2]
[342663964,1732029036287,-500.0,9.999e-05,2]
[342663965,1732029036296,-470.73865231,9.999e-05,2]
[342663966,1732029036305,-500.0,9.999e-05,2]
[342663967,1732029036315,-500.0,9.999e-05,2]
[342663968,1732029036324,-500.0,9.999e-05,2]
[342663969,1732029036333,-544.62,9.999e-05,2]
[342663970,1732029036343,-500.0,9.999e-05,2]
[342663971,1732029036352,-500.0,9.999e-05,2]
[342663972,1732029036362,-500.0,9.999e-05,2]
[342663973,1732029036371,-500.0,9.999e-05,2]
[342663974,1732029036380,-500.0,9.999e-05,2]
[342663975,1732029036390,-500.0,9.999e-05,2]
[342663976,1732029036399,-213.4,9.999e-05,2]
[342663977,1732029036408,-500.0,9.999e-05,2]
[342663978,1732029036416,-500.0,9.999e-05,2]
[342663979,1732029036425,-500.0,9.999e-05,2]
[342663980,1732029036435,-500.0,9.999e-05,2]
[342663981,1732029036444,-500.0,9.999e-05,2]
[342663982,1732029036453,-500.0,9.999e-05,2]
[342663983,1732029036462,-500.0,9.999e-05,2]
[342663984,1732029036471,-303.77961628,9.999e-05,2]
[342663985,1732029036480,-500.0,9.999e-05,2]
[342663986,1732029036489,-500.0,9.999e-05,2]
[342663987,1732029036499,-500.0,9.999e-05,2]
[342663988,1732029036509,-500.0,9.999e-05,2]
[342663989,1732029036520,-500.0,9.999e-05,2]
[342663990,1732029036529,-500.0,9.999e-05,2]
[342663991,1732029036538,-607.75375632,9.999e-05,2]
[342663992,1732029036547,-340.96678472,9.999e-05,2]
[342663993,1732029036556,-500.0,9.999e-05,2]
[342663994,1732029036566,-500.0,9.999e-05,2]
[342663995,1732029036576,-500.0,9.999e-05,2]
[342663996,1732029036585,-500.0,9.999e-05,2]
[342663997,1732029036595,-500.0,9.999e-05,2]
[342663998,1732029036603,-500.0,9.999e-05,2]
[342663999,1732029036612,-450.33,9.999e-05,2]
[342664000,1732029036621,-333.96612596,9.999e-05,2]
[342664001,1732029036631,-500.0,9.999e-05,2]
[342664002,1732029036641,-500.0,9.999e-05,2]
[342664003,1732029036650,-500.0,9.999e-05,2]
[342664004,1732029036659,-166.28,9.999e-05,2]
[342664005,1732029036669,-500.0,9.999e-05,2]
[342664006,1732029036678,-500.0,9.999e-05,2]
[342664007,1732029036687,-500.0,9.999e-05,2]
[342664008,1732029036696,-500.0,9.999e-05,2]
[342664009,1732029036705,-500.0,9.999e-05,2]
[342664010,1732029036714,-500.0,9.999e-05,2]
[342664011,1732029036724,-500.0,9.999e-05,2]
[342664012,1732029036739,-500.0,9.999e-05,2]
[342664013,1732029036750,-500.0,9.999e-05,2]
[342664014,1732029036760,-500.0,9.999e-05,2]
[342664015,1732029036771,-500.0,9.999e-05,2]
[342664016,1732029036781,-500.0,9.999e-05,2]
[342664017,1732029036790,-500.0,9.999e-05,2]
[342664018,1732029036799,-500.0,9.999e-05,2]
[342664019,1732029036808,-500.0,9.999e-05,2]
[342664020,1732029036818,-401.78378917,9.999e-05,2]
[342664021,1732029036828,-500.0,9.999e-05,2]
[342664022,1732029036837,-500.0,9.999e-05,2]
[342664023,1732029036847,-278.73,9.999e-05,2]
[342664024,1732029036856,-500.0,9.999e-05,2]
[342664025,1732029036865,-538.10143477,9.999e-05,2]
[342664026,1732029036875,-475.85,9.999e-05,2]
[342664027,1732029036884,-500.0,9.999e-05,2]
[342664028,1732029036893,-153.60343081,9.999e-05,2]
[342664029,1732029036903,-661.48,9.999e-05,2]
[342664030,1732029036913,-500.0,9.999e-05,2]
[342664031,1732029036923,-500.0,9.999e-05,2]
[342664032,1732029036933,-500.0,9.999e-05,2]
[342664033,1732029036942,-1000.0,0.0001,2]
[342664034,1732029036951,-1000.0,0.0001,2]
[342664035,1732029036960,-1000.0,0.0001,2]
[342664036,1732029036970,-1000.0,0.0001,2]
[342664037,1732029036979,-1000.0,0.0001,2]
[342664038,1732029036988,-800.0,0.0001,2]
[342664039,1732029036998,-800.0,0.0001,2]
[342664040,1732029037007,-800.0,0.0001,2]
[342664041,1732029037018,-800.0,0.0001,2]
[342664042,1732029037027,-300.0,0.0001,2]
[342664043,1732029037037,-5800.0,0.0001,2]
[342664044,1732029037046,-7537.65,0.0001,2]
[342664045,1732029037056,-1000.0,0.00010029,2]
[342664046,1732029037065,-156.298,0.00010096,2]
[342664047,1732029037074,-250.0,0.00010096,2]
[342664048,1732029037083,-255.0,0.00010214,2]
[342664049,1732029037094,-1003.61,0.0001035,2]
[342664050,1732029037103,-1003.61,0.00010353,2]
[342664051,1732029037113,-1003.61,0.00010356,2]
[342664052,1732029037122,-1003.61,0.00010359,2]
[342664053,1732029037132,-1003.61,0.00010361,2]
[342664054,1732029037141,-1003.61,0.00010364,2]
[342664055,1732029037150,-1003.61,0.00010367,2]
[342664056,1732029037160,-1003.61,0.00010369,2]
[342664057,1732029037169,-1003.61,0.00010372,2]
[342664058,1732029037178,-1003.61,0.00010375,2]
[342664059,1732029037188,-1003.61,0.00010378,2]
[342664060,1732029037197,-1003.61,0.0001038,2]
[342664061,1732029037207,-1003.61,0.00010383,2]
[342664062,1732029037217,-1003.61,0.00010386,2]
[342664063,1732029037226,-1003.61,0.00010388,2]
[342664064,1732029037238,-1003.61,0.00010391,2]
[342664065,1732029037248,-1003.61,0.00010394,2]
[342664066,1732029037259,-1003.61,0.00010397,2]
[342664067,1732029037271,-1003.61,0.00010399,2]
[342664068,1732029037281,-1003.61,0.00010402,2]
[342664069,1732029037290,-264.67,0.00010416,2]
[342664070,1732029037299,-1317.95,0.00010475,2]
[342664071,1732029037309,-384.13,0.00010475,2]
[342664072,1732029037319,-623.49,0.000106,2]
[342664073,1732029037328,-600.0,0.000109,2]
[342664074,1732029037338,-239.51,0.00010927,2]
[342664075,1732029037347,-150.0,0.00010959,2]
[342664076,1732029037356,-1566.93,0.00010959,2]
[342664077,1732029037366,-1305.78,0.00010959,2]
[342664078,1732029037376,-150.0,0.00010959,2]
[342664079,1732029037385,-1088.15,0.00010959,2]
[342664080,1732029037394,-1000.0,0.00011144,2]
[342664081,1732029037403,-356.0,0.00011236,2]
[342664082,1732029037413,-150.0,0.00011247,2]
[342664083,1732029037423,-2751.0,0.00011507,2]
[342664084,1732029037431,-150.0,0.00011536,2]
[342664085,1732029037441,-151.95187727,0.00011809,2]
[342664086,1732029037597,-500.22785889,0.00011809,2]
[342664087,1732029037609,-347.82026384,0.00011809,2]
[342664088,1732029037619,-150.0,0.00011824,2]
[342664089,1732029037630,-250.0,0.00012,2]
[342664090,1732029037639,-282.457,0.00012,2]
[342664091,1732029037649,-245.382,0.00012,2]
[342664092,1732029037658,-427.95176861,0.00012,2]
[342664093,1732029037678,-172.04823139,0.00012,2]
[342664094,1732029037687,-239.51,0.0001202,2]
[342664095,1732029037696,-150.0,0.00012112,2]
[342664096,1732029037706,-150.31,0.00012211,2]
[342664097,1732029037715,-1000.0,0.00012258,2]
[342664098,1732029037724,-6327.97006985,0.00012329,2]
[342664099,1732029037737,-287.37338502,0.00012329,2]
[342664100,1732029037748,-4321.79265873,0.00012329,2]
[342664101,1732029037760,-8646.16321373,0.00012329,2]
[342664102,1732029037776,-1196.37666653,0.00012329,2]
[342664103,1732029037791,-11621.0851873,0.00012329,2]
[342664104,1732029037802,-14888.81881884,0.00012329,2]
[342664105,1732029037813,-303.67,0.00012339,2]
[342664106,1732029037822,-150.0,0.00012401,2]
[342664107,1732029037832,-264.67,0.00012612,2]
[342664108,1732029037841,-150.0,0.00012689,2]
[342664109,1732029037852,-151.0,0.00012727,2]
[342664110,1732029037863,-1161.0,0.00012877,2]
[342664111,1732029037872,-250.701,0.00012877,2]
[342664112,1732029037882,-818.694,0.00012877,2]
[342664113,1732029037893,-5937.0,0.00012877,2]
[342664114,1732029037904,-150.0,0.00012978,2]
[342664115,1732029037916,-565.776,0.00013,2]
[342664116,1732029037926,-1255.0,0.00013,2]
[342664117,1732029037937,-909.0,0.00013,2]
[342664118,1732029037947,-3747.0,0.00013,2]
[342664119,1732029037958,-818.0,0.00013,2]
[342664120,1732029037969,-1260.0,0.00013,2]
[342664121,1732029037978,-3492.0,0.00013,2]
[342664122,1732029037989,-239.51,0.00013113,2]
[342664123,1732029037999,-150.0,0.00013266,2]
[342664124,1732029038010,-1000.0,0.00013373,2]
[342664125,1732029038022,-2240.0,0.000134,2]
[342664126,1732029038032,-2240.0,0.00013538,2]
[342664127,1732029038042,-150.0,0.00013554,2]
[342664128,1732029038054,-2240.0,0.00013676,2]
[342664129,1732029038064,-514.98274776,0.00013698,2]
[342664130,1732029038074,-500.0,0.00013699,2]
[342664131,1732029038085,-200.0,0.00013699,2]
[342664132,1732029038096,-500.0,0.00013699,2]
[342664133,1732029038106,-2240.0,0.00013814,2]
[342664134,1732029038116,-711.86671687,0.00013814,2]
[342664135,1732029038126,-150.0,0.00013843,2]
[342664136,1732029038136,-2240.0,0.00013952,2]
[342664137,1732029038147,-2240.0,0.0001409,2]
[342664138,1732029038157,-150.0,0.00014131,2]
[342664139,1732029038169,-2240.0,0.00014228,2]
[342664140,1732029038179,-641.19400989,0.00014247,2]
[342664141,1732029038190,-264.27,0.00014293,2]
[342664143,1732029038201,-150.0,0.0001442,2]
[342664146,1732029038212,-200.0,0.00014677,2]
[342664147,1732029038223,-150.0,0.00014708,2]
[342664148,1732029038236,-264.67,0.00014809,2]
[342664149,1732029038248,-150.0,0.00014996,2]
[342664150,1732029038259,-1000.0,0.00014999,2]
[342664151,1732029038269,-150.0,0.00015,2]
[342664152,1732029038279,-150.0,0.00015,2]
[342664153,1732029038289,-1011.02,0.00015,2]
[342664155,1732029038299,-151.16205817,0.00015,15]
[342664157,1732029038310,-300.0,0.00015068,2]
[342664159,1732029038319,-150.0,0.00015211,2]
[342664161,1732029038329,-150.0,0.00015285,2]
[342664163,1732029038339,-151.0,0.00015543,2]
[342664165,1732029038348,-1000.0,0.00015547,2]
[342664167,1732029038357,-150.0,0.00015573,2]
[342664169,1732029038367,-150.0,0.00015861,2]
[342664171,1732029038376,-554.219,0.00016,2]
[342664173,1732029038387,-814.0,0.00016,2]
[342664175,1732029038397,-963.752,0.00016,2]
[342664178,1732029038407,-9999.99,0.00016116,2]
[342664180,1732029038418,-150.0,0.0001615,2]
[342664183,1732029038428,-1011.02,0.00016365,2]
[342664185,1732029038438,-500.0,0.00016436,2]
[342664187,1732029038448,-500.0,0.00016436,2]
[342664189,1732029038459,-353.2,0.00016436,2]
[342664191,1732029038469,-500.0,0.00016436,2]
[342664193,1732029038479,-500.0,0.00016436,2]
[342664195,1732029038490,-500.0,0.00016436,2]
[342664197,1732029038500,-500.0,0.00016436,2]
[342664199,1732029038510,-189.71,0.00016436,2]
[342664201,1732029038522,-500.0,0.00016436,2]
[342664203,1732029038532,-635.19,0.00016436,2]
[342664205,1732029038542,-587.02,0.00016436,2]
[342664207,1732029038553,-500.0,0.00016436,2]
[342664209,1732029038563,-1000.0,0.00016437,2]
[342664212,1732029038573,-500.0,0.00016438,2]
[342664214,1732029038584,-150.0,0.00016438,2]
[342664216,1732029038596,-1758.17762055,0.00016438,2]
[342664218,1732029038609,-641.43342479,0.00016438,2]
[342664221,1732029038622,-1600.38895466,0.00016438,2]
[342664223,1732029038633,-300.0,0.00016438,2]
[342664225,1732029038643,-80.55231573,0.00016658,30]
[342664227,1732029038656,-698.34768427,0.00016658,30]
[342664229,1732029038667,-106.53601909,0.00017005,2]
[342664232,1732029038680,-158.13398091,0.00017005,2]
[342664234,1732029038689,-584.06601909,0.00017708,2]
[342664236,1732029038702,-77.41398091,0.00017708,2]
[342664238,1732029038712,-326.58601909,0.00017708,2]
[342664240,1732029038725,-173.41398091,0.00017708,2]
[342664242,1732029038736,-500.0,0.00017708,2]
[342664245,1732029038749,-500.0,0.00017709,2]
[342664247,1732029038760,-302.82,0.00017709,2]
[342664249,1732029038772,-1011.02,0.0001773,2]
[342664251,1732029038783,-150.0,0.00018,2]
[342664253,1732029038793,-150.0,0.00018,2]
[342664255,1732029038804,-150.0,0.00018211,2]
[342664257,1732029038816,-564.01892991,0.00019095,2]
[342664260,1732029038829,-447.00107009,0.00019095,2]
[342664262,1732029038840,-193.66,0.00019178,2]
[342664264,1732029038850,-264.67,0.00019202,2]
[342664266,1732029038860,-778.9,0.00019242,30]
[342664268,1732029038871,-170.04362994,0.00019429,2]
[342664270,1732029038882,-1056.53127252,0.000196,2]
[342664272,1732029038893,-583.0,0.000199,2]
[342664274,1732029038902,-327.04116888,0.0002046,2]
[342664276,1732029038916,-683.97883112,0.0002046,2]
[342664278,1732029038926,-175.76,0.00020548,2]
[342664280,1732029038936,-238.21468891,0.00021399,2]
[342664283,1732029038948,-26.45531109,0.00021399,2]
[342664285,1732029038959,-1000.0,0.000215,2]
[342664287,1732029038969,-500.0,0.00021684,2]
[342664289,1732029038979,-500.0,0.00021684,2]
[342664291,1732029038990,-500.0,0.00021684,2]
[342664293,1732029038999,-500.0,0.00021684,2]
[342664295,1732029039010,-500.0,0.00021684,2]
[342664297,1732029039021,-500.0,0.00021684,2]
[342664299,1732029039033,-500.0,0.00021684,2]
[342664301,1732029039043,-500.0,0.00021684,2]
[342664303,1732029039054,-500.0,0.00021684,2]
[342664306,1732029039065,-500.0,0.00021684,2]
[342664308,1732029039075,-500.0,0.00021684,2]
[342664310,1732029039086,-500.0,0.00021684,2]
[342664312,1732029039096,-500.0,0.00021684,2]
[342664314,1732029039107,-500.0,0.00021684,2]
[342664316,1732029039116,-500.0,0.00021684,2]
[342664318,1732029039126,-500.0,0.00021684,2]
[342664320,1732029039136,-500.0,0.00021684,2]
[342664322,1732029039146,-500.0,0.00021684,2]
[342664324,1732029039156,-500.0,0.00021684,2]
[342664326,1732029039166,-500.0,0.00021684,2]
[342664328,1732029039176,-500.0,0.00021684,2]
[342664330,1732029039187,-500.0,0.00021684,2]
[342664332,1732029039196,-500.0,0.00021684,2]
[342664334,1732029039207,-500.0,0.00021684,2]
[342664336,1732029039217,-500.0,0.00021684,2]
[342664339,1732029039228,-500.0,0.00021684,2]
[342664341,1732029039239,-500.0,0.00021684,2]
[342664343,1732029039251,-500.0,0.00021684,2]
[342664345,1732029039262,-173.54468891,0.00021684,2]
[342664353,1732029039327,-1000.0,0.00012877,2]
[342664355,1732029039337,-326.45531109,0.00021684,2]
[342664357,1732029039347,-500.0,0.00021684,2]
[342664359,1732029039357,-500.0,0.00021684,2]
[342664361,1732029039367,-500.0,0.00021684,2]
[342664363,1732029039377,-500.0,0.00021684,2]
[342664365,1732029039388,-500.0,0.00021684,2]
[342664367,1732029039398,-500.0,0.00021684,2]
[342664370,1732029039408,-500.0,0.00021684,2]
[342664372,1732029039418,-500.0,0.00021684,2]
[342664374,1732029039428,-500.0,0.00021684,2]
[342664377,1732029039440,-500.0,0.00021684,2]
[342664379,1732029039450,-500.0,0.00021684,2]
[342664381,1732029039460,-500.0,0.00021684,2]
[342664383,1732029039471,-500.0,0.00021684,2]
[342664385,1732029039481,-500.0,0.00021684,2]
[342664387,1732029039492,-500.0,0.00021684,2]
[342664389,1732029039503,-500.0,0.00021684,2]
[342664392,1732029039514,-500.0,0.00021684,2]
[342664394,1732029039527,-500.0,0.00021684,2]
[342664397,1732029039536,-500.0,0.00021684,2]
[342664399,1732029039546,-500.0,0.00021684,2]
[342664401,1732029039556,-500.0,0.00021684,2]
[342664403,1732029039566,-500.0,0.00021684,2]
[342664405,1732029039576,-500.0,0.00021684,2]
[342664407,1732029039586,-500.0,0.00021684,2]
[342664409,1732029039596,-500.0,0.00021684,2]
[342664411,1732029039606,-500.0,0.00021684,2]
[342664413,1732029039615,-500.0,0.00021684,2]
[342664415,1732029039625,-500.0,0.00021684,2]
[342664417,1732029039635,-500.0,0.00021684,2]
[342664419,1732029039646,-500.0,0.00021684,2]
[342664421,1732029039656,-500.0,0.00021684,2]
[342664423,1732029039666,-500.0,0.00021684,2]
[342664425,1732029039676,-500.0,0.00021684,2]
[342664427,1732029039685,-500.0,0.00021684,2]
[342664429,1732029039696,-500.0,0.00021684,2]
[342664431,1732029039706,-500.0,0.00021684,2]
[342664433,1732029039716,-500.0,0.00021684,2]
[342664436,1732029039726,-500.0,0.00021684,2]
[342664438,1732029039739,-500.0,0.00021684,2]
[342664440,1732029039749,-500.0,0.00021684,2]
[342664442,1732029039759,-500.0,0.00021684,2]
[342664443,1732029039770,-500.0,0.00021684,2]
[342664446,1732029039781,-500.0,0.00021684,2]
[342664448,1732029039792,-500.0,0.00021684,2]
[342664450,1732029039802,-500.0,0.00021684,2]
[342664452,1732029039814,-500.0,0.00021684,2]
[342664454,1732029039825,-500.0,0.00021684,2]
[342664456,1732029039835,-500.0,0.00021684,2]
[342664458,1732029039845,-500.0,0.00021684,2]
[342664460,1732029039855,-500.0,0.00021684,2]
[342664462,1732029039865,-500.0,0.00021684,2]
[342664464,1732029039874,-500.0,0.00021684,2]
[342664466,1732029039884,-500.0,0.00021684,2]
[342664468,1732029039894,-500.0,0.00021684,2]
[342664470,1732029039904,-500.0,0.00021684,2]
[342664472,1732029039914,-500.0,0.00021684,2]
[342664474,1732029039924,-500.0,0.00021684,2]
[342664476,1732029039935,-500.0,0.00021684,2]
[342664478,1732029039945,-500.0,0.00021684,2]
[342664479,1732029039955,-500.0,0.00021684,2]
[342664480,1732029039965,-500.0,0.00021684,2]
[342664481,1732029039975,-500.0,0.00021684,2]
[342664482,1732029039984,-500.0,0.00021684,2]
[342664483,1732029039994,-500.0,0.00021684,2]
[342664484,1732029040003,-500.0,0.00021684,2]
[342664485,1732029040012,-500.0,0.00021684,2]
[342664486,1732029040023,-500.0,0.00021684,2]
[342664487,1732029040032,-500.0,0.00021684,2]
[342664488,1732029040041,-500.0,0.00021684,2]
[342664489,1732029040051,-500.0,0.00021684,2]
[342664491,1732029040061,-500.0,0.00021684,2]
[342664493,1732029040071,-500.0,0.00021684,2]
[342664495,1732029040081,-500.0,0.00021684,2]
[342664497,1732029040091,-500.0,0.00021684,2]
[342664498,1732029040100,-500.0,0.00021684,2]
[342664500,1732029040110,-500.0,0.00021684,2]
[342664502,1732029040120,-500.0,0.00021684,2]
[342664504,1732029040129,-500.0,0.00021684,2]
[342664506,1732029040139,-500.0,0.00021684,2]
[342664508,1732029040149,-500.0,0.00021684,2]
[342664510,1732029040158,-500.0,0.00021684,2]
[342664512,1732029040168,-500.0,0.00021684,2]
[342664514,1732029040178,-500.0,0.00021684,2]